[Event "European Online Club-ch-F 2021"]
[Site "Online"]
[Date "2021.03.27"]
[Round "6.14"]
[White "Can, Isik"]
[Black "Smirin, Ilia"]
[Result "0-1"]
[ECO "B41"]
[WhiteElo "2380"]
[BlackElo "2614"]
[Annotator "ChessBase"]
[PlyCount "68"]
[EventDate "2021.03.27"]
[EventType "team-tourn"]
[EventCountry "NET"]
[SourceTitle "playchess.com"]
[Source "ChessBase"]
[SourceQuality "1"]
[TimeControl "900+5"]

1. e4 {[%emt 0:00:00]} c5 {[%emt 0:00:04]} 2. Nf3 {[%emt 0:00:03]} e6 {[%emt 0:00:01]} 3. d4 {[%emt 0:00:02]} cxd4 {[%emt 0:00:02]} 4. Nxd4 {[%emt 0:00:01]} a6 {[%emt 0:00:02]} 5. c4 {[%emt 0:00:02]} Nf6 {[%emt 0:00:03]} 6. Nc3 {[%emt 0:00:03]} Qc7 {[%emt 0:00:02]} 7. Be2 {[%emt 0:00:02]} Bb4 {[%emt 0:00:06]} 8. Nc2 {[%emt 0:00:02]} Bd6 {[%emt 0:00:09]} 9. h3 {[%emt 0:01:59]} b6 {[%emt 0:00:26]} 10. O-O {[%emt 0:01:28]} Bb7 {[%emt 0:00:07]} 11. Bd3 {[%emt 0:00:03]} Bh2+ {[%emt 0:01:16]} 12. Kh1 {[%emt 0:00:06]} Bf4 {[%emt 0:00:03]} 13. Qf3 {[%emt 0:01:16]} Bxc1 {[%emt 0:00:09]} 14. Raxc1 {[%emt 0:00:05]} Nc6 {[%emt 0:00:07]} 15. Qe3 {[%emt 0:00:44]} d6 {[%emt 0:00:32]} 16. f4 {[%emt 0:02:12]} O-O {[%emt 0:00:07]} 17. Qg3 {[%emt 0:01:43]} Rfd8 {[%emt 0:00:57]} 18. Ne3 {[%emt 0:00:24]} Qe7 {[%emt 0:00:27]} 19. Bb1 {[%emt 0:00:33]} Rac8 {[%emt 0:00:46]} 20. b3 {[%emt 0:01:19]} Ba8 {[%emt 0:00:46]} 21. Rce1 {[%emt 0:01:43]} Nh5 {[%emt 0:02:05]} 22. Qg4 {[%emt 0:00:10]} g6 {[%emt 0:00:05]} 23. Ned5 {[%emt 0:01:27]} exd5 {[%emt 0:00:12]} 24. exd5 {[%emt 0:00:03]} Qf6 {[%emt 0:00:09]} 25. Ne4 {[%emt 0:00:04]} Qg7 {[%emt 0:00:04]} 26. Nxd6 {[%emt 0:00:40]} Nf6 {[%emt 0:01:42]} 27. Qxc8 {[%emt 0:00:22]} Rxc8 {[%emt 0:00:04]} 28. Nxc8 {[%emt 0:00:02]} Qf8 {[%emt 0:00:31]} 29. Nxb6 {[%emt 0:00:03]} Nd4 {[%emt 0:00:02]} 30. Rf2 {[%emt 0:00:34]} Qb4 {[%emt 0:00:20]} 31. Rd1 {[%emt 0:00:07]} Qxb6 {[%emt 0:00:06]} 32. Rfd2 {[%emt 0:00:03]} Nf5 {[%emt 0:00:14]} 33. d6 {[%emt 0:00:08]} Bc6 {[%emt 0:00:10]} 34. Bxf5 {[%emt 0:00:08]} gxf5 {[%emt 0:00:04]} 0-1

[Event "European Online Club-ch-F 2021"]
[Site "Online"]
[Date "2021.03.27"]
[Round "6.17"]
[White "Agrest, Evgenij"]
[Black "Pechac, Jergus"]
[Result "0-1"]
[ECO "D00"]
[WhiteElo "2568"]
[BlackElo "2507"]
[Annotator "ChessBase"]
[PlyCount "82"]
[EventDate "2021.03.27"]
[EventType "team-tourn"]
[EventCountry "NET"]
[SourceTitle "playchess.com"]
[Source "ChessBase"]
[SourceQuality "1"]
[TimeControl "900+5"]

1. d4 {[%emt 0:00:00]} Nf6 {[%emt 0:00:56]} 2. Nc3 {[%emt 0:00:06]} d5 {[%emt 0:00:03]} 3. Bf4 {[%emt 0:00:03]} e6 {[%emt 0:00:02]} 4. Nb5 {[%emt 0:00:04]} Na6 {[%emt 0:00:01]} 5. e3 {[%emt 0:00:04]} Be7 {[%emt 0:00:03]} 6. Nf3 {[%emt 0:00:42]} O-O {[%emt 0:00:05]} 7. Ne5 {[%emt 0:00:22]} Nd7 {[%emt 0:02:22]} 8. Bd3 {[%emt 0:00:19]} Nxe5 {[%emt 0:00:26]} 9. Bxe5 {[%emt 0:00:14]} c6 {[%emt 0:00:01]} 10. Nc3 {[%emt 0:00:08]} Nb4 {[%emt 0:00:11]} 11. a3 {[%emt 0:00:31]} Nxd3+ {[%emt 0:00:04]} 12. cxd3 {[%emt 0:00:05]} f6 {[%emt 0:00:32]} 13. Bg3 {[%emt 0:00:06]} Bd6 {[%emt 0:00:04]} 14. e4 {[%emt 0:01:09]} Bxg3 {[%emt 0:01:45]} 15. hxg3 {[%emt 0:00:05]} Qb6 {[%emt 0:00:00]} 16. Qe2 {[%emt 0:01:11]} Rf7 {[%emt 0:01:39]} 17. O-O-O {[%emt 0:01:13]} Qxd4 {[%emt 0:00:36]} 18. f4 {[%emt 0:00:04]} b5 {[%emt 0:01:25]} 19. Rh4 {[%emt 0:01:15]} Rb8 {[%emt 0:03:10]} 20. f5 {[%emt 0:04:36]} Qe5 {[%emt 0:00:45]} 21. d4 {[%emt 0:00:34]} Qxg3 {[%emt 0:00:09]} 22. Rdh1 {[%emt 0:00:05]} h6 {[%emt 0:01:27]} 23. Rg4 {[%emt 0:00:35]} Qc7 {[%emt 0:00:06]} 24. exd5 {[%emt 0:01:03]} exf5 {[%emt 0:00:07]} 25. Rg6 {[%emt 0:00:39]} Kf8 {[%emt 0:00:30]} 26. dxc6 {[%emt 0:00:26]} Qxc6 {[%emt 0:00:12]} 27. Qd2 {[%emt 0:00:03]} Bd7 {[%emt 0:00:12]} 28. Qf4 {[%emt 0:00:32]} Re8 {[%emt 0:00:09]} 29. d5 {[%emt 0:00:11]} Qc5 {[%emt 0:00:05]} 30. Rg3 {[%emt 0:00:08]} g5 {[%emt 0:00:09]} 31. Qd2 {[%emt 0:00:06]} f4 {[%emt 0:00:02]} 32. Rd3 {[%emt 0:00:07]} Kg7 {[%emt 0:00:10]} 33. d6 {[%emt 0:00:03]} Re5 {[%emt 0:00:04]} 34. Qd1 {[%emt 0:00:09]} g4 {[%emt 0:00:08]} 35. Rd4 {[%emt 0:00:07]} a5 {[%emt 0:00:06]} 36. Kb1 {[%emt 0:00:26]} b4 {[%emt 0:00:01]} 37. Na2 {[%emt 0:00:07]} bxa3 {[%emt 0:00:04]} 38. Qd2 {[%emt 0:00:13]} axb2 {[%emt 0:00:06]} 39. Rxf4 {[%emt 0:00:02]} Rd5 {[%emt 0:00:07]} 40. Rd4 {[%emt 0:00:07]} Bf5+ {[%emt 0:00:04]} 41. Kxb2 {[%emt 0:00:05]} Qxd4+ {[%emt 0:00:01]} 0-1

[Event "European Online Club-ch-F 2021"]
[Site "Online"]
[Date "2021.03.27"]
[Round "6.18"]
[White "Zwardon, Vojtech"]
[Black "Zhigalko, Andrey"]
[Result "1/2-1/2"]
[ECO "A36"]
[WhiteElo "2466"]
[BlackElo "2517"]
[Annotator "ChessBase"]
[PlyCount "40"]
[EventDate "2021.03.27"]
[EventType "team-tourn"]
[EventCountry "NET"]
[SourceTitle "playchess.com"]
[Source "ChessBase"]
[SourceQuality "1"]
[TimeControl "900+5"]

1. c4 {[%emt 0:00:00]} c5 {[%emt 0:00:03]} 2. g3 {[%emt 0:00:03]} Nc6 {[%emt 0:00:03]} 3. Bg2 {[%emt 0:00:01]} g6 {[%emt 0:00:02]} 4. Nc3 {[%emt 0:00:01]} Bg7 {[%emt 0:00:01]} 5. d3 {[%emt 0:00:01]} e6 {[%emt 0:00:07]} 6. Bf4 {[%emt 0:00:01]} d6 {[%emt 0:00:03]} 7. Nf3 {[%emt 0:00:02]} Nge7 {[%emt 0:00:08]} 8. Rb1 {[%emt 0:00:03]} h6 {[%emt 0:01:11]} 9. O-O {[%emt 0:00:05]} e5 {[%emt 0:02:49]} 10. Bd2 {[%emt 0:00:06]} Be6 {[%emt 0:00:04]} 11. a3 {[%emt 0:00:08]} a5 {[%emt 0:00:11]} 12. Qc1 {[%emt 0:01:04]} Rc8 {[%emt 0:00:34]} 13. Re1 {[%emt 0:01:19]} d5 {[%emt 0:05:12]} 14. cxd5 {[%emt 0:00:04]} Nxd5 {[%emt 0:00:00]} 15. Nxd5 {[%emt 0:00:34]} Bxd5 {[%emt 0:00:00]} 16. Qxc5 {[%emt 0:00:08]} Nb4 {[%emt 0:00:53]} 17. Qa7 {[%emt 0:02:15]} Ra8 {[%emt 0:00:08]} 18. Qc5 {[%emt 0:00:01]} Rc8 {[%emt 0:00:08]} 19. Qa7 {[%emt 0:01:43]} Ra8 {[%emt 0:00:03]} 20. Qc5 {[%emt 0:00:02]} Rc8 {[%emt 0:00:03]} 1/2-1/2

[Event "European Online Club-ch-F 2021"]
[Site "Online"]
[Date "2021.03.27"]
[Round "6.19"]
[White "Kazakouski, Valery"]
[Black "Druska, Juraj"]
[Result "1/2-1/2"]
[ECO "B07"]
[WhiteElo "2476"]
[BlackElo "2495"]
[Annotator "ChessBase"]
[PlyCount "74"]
[EventDate "2021.03.27"]
[EventType "team-tourn"]
[EventCountry "NET"]
[SourceTitle "playchess.com"]
[Source "ChessBase"]
[SourceQuality "1"]
[TimeControl "900+5"]

1. d4 {[%emt 0:00:00]} d6 {[%emt 0:00:15]} 2. e4 {[%emt 0:00:03]} Nf6 {[%emt 0:00:05]} 3. Nc3 {[%emt 0:00:02]} e5 {[%emt 0:00:00]} 4. Nge2 {[%emt 0:00:39]} Nbd7 {[%emt 0:00:03]} 5. g3 {[%emt 0:00:02]} g6 {[%emt 0:00:02]} 6. Bg2 {[%emt 0:00:02]} Bg7 {[%emt 0:00:02]} 7. O-O {[%emt 0:00:02]} O-O {[%emt 0:00:01]} 8. h3 {[%emt 0:00:01]} c6 {[%emt 0:00:05]} 9. a4 {[%emt 0:00:02]} b6 {[%emt 0:00:03]} 10. Be3 {[%emt 0:00:14]} Bb7 {[%emt 0:00:06]} 11. f4 {[%emt 0:00:31]} exd4 {[%emt 0:01:53]} 12. Nxd4 {[%emt 0:00:53]} Re8 {[%emt 0:00:03]} 13. Re1 {[%emt 0:00:41]} a6 {[%emt 0:02:56]} 14. Bf2 {[%emt 0:01:39]} Qc7 {[%emt 0:00:07]} 15. Qd2 {[%emt 0:02:07]} Rad8 {[%emt 0:01:54]} 16. Rad1 {[%emt 0:00:36]} Nc5 {[%emt 0:00:16]} 17. b4 {[%emt 0:02:46]} Ne6 {[%emt 0:00:18]} 18. Nb3 {[%emt 0:00:22]} c5 {[%emt 0:02:42]} 19. Nd5 {[%emt 0:00:58]} Nxd5 {[%emt 0:00:51]} 20. exd5 {[%emt 0:00:04]} Nf8 {[%emt 0:00:02]} 21. a5 {[%emt 0:01:30]} Nd7 {[%emt 0:00:03]} 22. axb6 {[%emt 0:00:08]} Qxb6 {[%emt 0:00:00]} 23. bxc5 {[%emt 0:00:04]} Nxc5 {[%emt 0:00:00]} 24. Nxc5 {[%emt 0:00:22]} dxc5 {[%emt 0:00:00]} 25. Rb1 {[%emt 0:00:03]} Qa7 {[%emt 0:00:14]} 26. Qa5 {[%emt 0:00:55]} Bd4 {[%emt 0:01:00]} 27. Rxe8+ {[%emt 0:00:11]} Rxe8 {[%emt 0:00:03]} 28. Bxd4 {[%emt 0:00:16]} cxd4 {[%emt 0:00:00]} 29. Qb6 {[%emt 0:00:01]} Qxb6 {[%emt 0:00:08]} 30. Rxb6 {[%emt 0:00:00]} Bc8 {[%emt 0:00:01]} 31. Rb4 {[%emt 0:00:41]} Bf5 {[%emt 0:00:08]} 32. Rxd4 {[%emt 0:00:26]} Bxc2 {[%emt 0:00:03]} 33. d6 {[%emt 0:00:01]} Rd8 {[%emt 0:00:11]} 34. Bf1 {[%emt 0:00:17]} a5 {[%emt 0:00:09]} 35. Bb5 {[%emt 0:00:01]} a4 {[%emt 0:00:41]} 36. Bxa4 {[%emt 0:00:04]} Bxa4 {[%emt 0:00:03]} 37. Rxa4 {[%emt 0:00:00]} Rxd6 {[%emt 0:00:01]} 1/2-1/2

[Event "European Online Club-ch-F 2021"]
[Site "Online"]
[Date "2021.03.27"]
[Round "6.20"]
[White "Jablonicky, Martin"]
[Black "Meribanov, Vitaly"]
[Result "1/2-1/2"]
[ECO "B20"]
[WhiteElo "2298"]
[BlackElo "2406"]
[Annotator "NA"]
[PlyCount "115"]
[EventDate "2021.03.27"]
[EventType "team-tourn"]
[EventCountry "NET"]
[SourceTitle "playchess.com"]
[Source "ChessBase"]
[SourceQuality "1"]
[TimeControl "900+5"]

1. e4 {[%emt 0:00:00]} c5 {[%emt 0:00:05]} 2. a3 {[%emt 0:00:04]} d5 {[%emt 0:00:20]} 3. exd5 {[%emt 0:00:07]} Qxd5 {[%emt 0:00:03]} 4. Nc3 {[%emt 0:00:03]} Qd8 {[%emt 0:00:03]} 5. Nf3 {[%emt 0:00:06]} Nf6 {[%emt 0:00:03]} 6. Bb5+ {[%emt 0:00:30]} Bd7 {[%emt 0:00:06]} 7. Bxd7+ {[%emt 0:00:38]} Nbxd7 {[%emt 0:00:02]} 8. O-O {[%emt 0:00:07]} e6 {[%emt 0:00:05]} 9. d3 {[%emt 0:00:23]} Be7 {[%emt 0:00:10]} 10. Bf4 {[%emt 0:00:14]} O-O {[%emt 0:00:02]} 11. Ne5 {[%emt 0:00:39]} Nxe5 {[%emt 0:00:21]} 12. Bxe5 {[%emt 0:00:03]} Bd6 {[%emt 0:00:17]} 13. Bxf6 {[%emt 0:01:56]} Qxf6 {[%emt 0:00:05]} 14. Ne4 {[%emt 0:00:03]} Qf4 {[%emt 0:01:36]} 15. Nxd6 {[%emt 0:03:32]} Qxd6 {[%emt 0:00:05]} 16. Qf3 {[%emt 0:00:03]} b6 {[%emt 0:00:08]} 17. Rfe1 {[%emt 0:00:05]} Rad8 {[%emt 0:00:27]} 18. Qg3 {[%emt 0:01:05]} Qd4 {[%emt 0:01:00]} 19. Qe5 {[%emt 0:00:03]} Rd5 {[%emt 0:01:17]} 20. Qxd4 {[%emt 0:00:08]} cxd4 {[%emt 0:01:05]} 21. Re2 {[%emt 0:00:08]} Rc8 {[%emt 0:00:07]} 22. Kf1 {[%emt 0:00:37]} Rb5 {[%emt 0:00:33]} 23. Rb1 {[%emt 0:00:17]} Rbc5 {[%emt 0:01:22]} 24. Rc1 {[%emt 0:00:03]} Kf8 {[%emt 0:00:11]} 25. Ke1 {[%emt 0:00:03]} Ke7 {[%emt 0:00:02]} 26. Kd2 {[%emt 0:00:03]} Kd6 {[%emt 0:00:57]} 27. Re4 {[%emt 0:00:39]} e5 {[%emt 0:00:48]} 28. f4 {[%emt 0:00:06]} f6 {[%emt 0:00:03]} 29. fxe5+ {[%emt 0:00:03]} fxe5 {[%emt 0:00:03]} 30. Rh4 {[%emt 0:00:55]} h6 {[%emt 0:00:05]} 31. Rg4 {[%emt 0:00:12]} R8c7 {[%emt 0:00:04]} 32. Rg6+ {[%emt 0:00:14]} Kd5 {[%emt 0:00:03]} 33. c4+ {[%emt 0:01:26]} dxc3+ {[%emt 0:00:16]} 34. Rxc3 {[%emt 0:00:04]} Rxc3 {[%emt 0:02:10]} 35. bxc3 {[%emt 0:00:03]} e4 {[%emt 0:00:05]} 36. Rg4 {[%emt 0:01:12]} exd3 {[%emt 0:00:17]} 37. Kxd3 {[%emt 0:00:02]} Rf7 {[%emt 0:00:26]} 38. a4 {[%emt 0:00:09]} g5 {[%emt 0:00:37]} 39. Rd4+ {[%emt 0:01:21]} Kc5 {[%emt 0:00:08]} 40. Rc4+ {[%emt 0:00:04]} Kd5 {[%emt 0:00:18]} 41. Rd4+ {[%emt 0:00:05]} Kc6 {[%emt 0:00:07]} 42. h4 {[%emt 0:00:14]} Rf5 {[%emt 0:00:55]} 43. hxg5 {[%emt 0:00:19]} Rxg5 {[%emt 0:00:08]} 44. g4 {[%emt 0:00:19]} b5 {[%emt 0:00:23]} 45. axb5+ {[%emt 0:00:05]} Rxb5 {[%emt 0:00:24]} 46. Rf4 {[%emt 0:00:03]} Rd5+ {[%emt 0:00:06]} 47. Kc4 {[%emt 0:00:02]} Rd6 {[%emt 0:00:08]} 48. Rf5 {[%emt 0:00:07]} Rg6 {[%emt 0:00:09]} 49. Kb3 {[%emt 0:00:03]} Kb6 {[%emt 0:00:13]} 50. Rh5 {[%emt 0:00:03]} a5 {[%emt 0:00:08]} 51. c4 {[%emt 0:00:09]} Ka6 {[%emt 0:00:21]} 52. Ka4 {[%emt 0:00:06]} Kb6 {[%emt 0:00:03]} 53. Rb5+ {[%emt 0:00:08]} Kc6 {[%emt 0:00:04]} 54. Rxa5 {[%emt 0:00:03]} Rxg4 {[%emt 0:00:02]} 55. Ra6+ {[%emt 0:00:07]} Kc5 {[%emt 0:00:02]} 56. Rxh6 {[%emt 0:00:02]} Kxc4 {[%emt 0:00:02]} 57. Ka5 {[%emt 0:00:04]} Rg5+ {[%emt 0:00:03]} 58. Kb6 {[%emt 0:00:03]} 1/2-1/2

[Event "European Online Club-ch-F 2021"]
[Site "Online"]
[Date "2021.03.27"]
[Round "7.1"]
[White "Pechac, Jergus"]
[Black "Pulkkinen, Kari"]
[Result "1-0"]
[ECO "A57"]
[WhiteElo "2507"]
[BlackElo "2256"]
[Annotator "ChessBase"]
[PlyCount "63"]
[EventDate "2021.03.27"]
[EventType "team-tourn"]
[EventCountry "NET"]
[SourceTitle "playchess.com"]
[Source "ChessBase"]
[SourceQuality "1"]
[TimeControl "900+5"]

1. d4 {[%emt 0:00:00]} Nf6 {[%emt 0:00:04]} 2. c4 {[%emt 0:00:05]} c5 {[%emt 0:00:02]} 3. d5 {[%emt 0:00:02]} b5 {[%emt 0:00:02]} 4. cxb5 {[%emt 0:00:01]} a6 {[%emt 0:00:02]} 5. e3 {[%emt 0:00:01]} g6 {[%emt 0:00:03]} 6. Nc3 {[%emt 0:00:03]} Bg7 {[%emt 0:00:03]} 7. a4 {[%emt 0:00:03]} O-O {[%emt 0:00:04]} 8. e4 {[%emt 0:00:06]} e6 {[%emt 0:00:19]} 9. e5 {[%emt 0:00:21]} Ne8 {[%emt 0:00:17]} 10. Nf3 {[%emt 0:00:23]} Bb7 {[%emt 0:00:17]} 11. Bc4 {[%emt 0:02:22]} axb5 {[%emt 0:00:14]} 12. Nxb5 {[%emt 0:00:10]} exd5 {[%emt 0:02:20]} 13. Bxd5 {[%emt 0:00:03]} Bxd5 {[%emt 0:04:24]} 14. Qxd5 {[%emt 0:00:00]} Nc6 {[%emt 0:01:10]} 15. O-O {[%emt 0:00:38]} Nc7 {[%emt 0:00:07]} 16. Nxc7 {[%emt 0:03:14]} Qxc7 {[%emt 0:00:04]} 17. Qxc5 {[%emt 0:00:02]} Ra5 {[%emt 0:00:05]} 18. Qc3 {[%emt 0:00:26]} Rb8 {[%emt 0:00:47]} 19. b3 {[%emt 0:00:51]} Qb7 {[%emt 0:00:28]} 20. Bd2 {[%emt 0:00:48]} Rd5 {[%emt 0:00:22]} 21. Bf4 {[%emt 0:01:20]} Qxb3 {[%emt 0:00:14]} 22. Qxb3 {[%emt 0:00:07]} Rxb3 {[%emt 0:00:02]} 23. Rad1 {[%emt 0:00:14]} Rxd1 {[%emt 0:00:15]} 24. Rxd1 {[%emt 0:00:02]} Rb4 {[%emt 0:00:05]} 25. g3 {[%emt 0:00:06]} Rxa4 {[%emt 0:00:08]} 26. Rxd7 {[%emt 0:00:04]} h6 {[%emt 0:00:05]} 27. h4 {[%emt 0:00:37]} Re4 {[%emt 0:00:14]} 28. Kg2 {[%emt 0:00:27]} Ra4 {[%emt 0:00:53]} 29. Rc7 {[%emt 0:00:10]} Nd4 {[%emt 0:00:11]} 30. Nxd4 {[%emt 0:00:02]} Rxd4 {[%emt 0:00:02]} 31. e6 {[%emt 0:00:02]} Re4 {[%emt 0:00:07]} 32. exf7+ {[%emt 0:00:05]} 1-0

[Event "European Online Club-ch-F 2021"]
[Site "Online"]
[Date "2021.03.27"]
[Round "7.2"]
[White "Prieur, Eetu"]
[Black "Zwardon, Vojtech"]
[Result "1-0"]
[ECO "B21"]
[WhiteElo "2172"]
[BlackElo "2466"]
[Annotator "ChessBase"]
[PlyCount "89"]
[EventDate "2021.03.27"]
[EventType "team-tourn"]
[EventCountry "NET"]
[SourceTitle "playchess.com"]
[Source "ChessBase"]
[SourceQuality "1"]
[TimeControl "900+5"]

1. e4 {[%emt 0:00:00]} c5 {[%emt 0:00:02]} 2. d4 {[%emt 0:00:04]} cxd4 {[%emt 0:00:02]} 3. c3 {[%emt 0:00:04]} dxc3 {[%emt 0:00:01]} 4. Nxc3 {[%emt 0:00:02]} Nc6 {[%emt 0:00:01]} 5. Nf3 {[%emt 0:00:04]} e6 {[%emt 0:00:02]} 6. Bc4 {[%emt 0:00:09]} a6 {[%emt 0:00:02]} 7. O-O {[%emt 0:00:52]} Nge7 {[%emt 0:00:03]} 8. Bg5 {[%emt 0:00:14]} h6 {[%emt 0:00:02]} 9. Be3 {[%emt 0:00:08]} Ng6 {[%emt 0:00:03]} 10. Bb3 {[%emt 0:00:15]} Be7 {[%emt 0:00:03]} 11. Na4 {[%emt 0:01:34]} d6 {[%emt 0:00:23]} 12. Nb6 {[%emt 0:00:21]} Rb8 {[%emt 0:00:02]} 13. Qd2 {[%emt 0:00:53]} Nge5 {[%emt 0:00:43]} 14. Nxe5 {[%emt 0:00:33]} dxe5 {[%emt 0:00:01]} 15. Rfd1 {[%emt 0:00:45]} O-O {[%emt 0:02:02]} 16. Qc3 {[%emt 0:00:52]} Nd4 {[%emt 0:00:03]} 17. Rxd4 {[%emt 0:02:50]} exd4 {[%emt 0:00:04]} 18. Bxd4 {[%emt 0:00:02]} Bf6 {[%emt 0:02:27]} 19. e5 {[%emt 0:01:53]} Bg5 {[%emt 0:00:43]} 20. Rd1 {[%emt 0:00:06]} Qe7 {[%emt 0:02:50]} 21. h4 {[%emt 0:01:51]} Bxh4 {[%emt 0:00:05]} 22. Bc5 {[%emt 0:00:02]} Qc7 {[%emt 0:00:02]} 23. Qb4 {[%emt 0:00:04]} Bd8 {[%emt 0:01:43]} 24. Nxc8 {[%emt 0:00:42]} a5 {[%emt 0:00:31]} 25. Qa3 {[%emt 0:00:18]} Rxc8 {[%emt 0:00:23]} 26. Bxf8 {[%emt 0:00:03]} Qxe5 {[%emt 0:00:02]} 27. Qd6 {[%emt 0:00:12]} Bf6 {[%emt 0:00:50]} 28. Qxe5 {[%emt 0:00:13]} Bxe5 {[%emt 0:00:00]} 29. Be7 {[%emt 0:00:02]} b5 {[%emt 0:00:16]} 30. Rd8+ {[%emt 0:00:05]} Rxd8 {[%emt 0:00:02]} 31. Bxd8 {[%emt 0:00:01]} a4 {[%emt 0:00:00]} 32. Bc2 {[%emt 0:00:05]} Bxb2 {[%emt 0:00:01]} 33. Kf1 {[%emt 0:00:23]} Bd4 {[%emt 0:00:08]} 34. Be7 {[%emt 0:00:06]} Bc3 {[%emt 0:00:08]} 35. a3 {[%emt 0:00:05]} f6 {[%emt 0:00:12]} 36. Bd3 {[%emt 0:00:05]} Kf7 {[%emt 0:00:01]} 37. Bc5 {[%emt 0:00:03]} b4 {[%emt 0:00:17]} 38. axb4 {[%emt 0:00:03]} a3 {[%emt 0:00:04]} 39. Bc4 {[%emt 0:00:02]} Ke8 {[%emt 0:00:32]} 40. Bxe6 {[%emt 0:00:04]} Kd8 {[%emt 0:00:00]} 41. Bd6 {[%emt 0:00:09]} Be5 {[%emt 0:00:10]} 42. Bxe5 {[%emt 0:00:25]} fxe5 {[%emt 0:00:00]} 43. Ke2 {[%emt 0:00:02]} Kc7 {[%emt 0:00:15]} 44. Kd3 {[%emt 0:00:04]} a2 {[%emt 0:00:04]} 45. Bxa2 {[%emt 0:00:06]} 1-0

[Event "European Online Club-ch-F 2021"]
[Site "Online"]
[Date "2021.03.27"]
[Round "7.3"]
[White "Druska, Juraj"]
[Black "Graeffe, Petri"]
[Result "1/2-1/2"]
[ECO "B40"]
[WhiteElo "2495"]
[BlackElo "2043"]
[Annotator "ChessBase"]
[PlyCount "127"]
[EventDate "2021.03.27"]
[EventType "team-tourn"]
[EventCountry "NET"]
[SourceTitle "playchess.com"]
[Source "ChessBase"]
[SourceQuality "1"]
[TimeControl "900+5"]

1. e4 {[%emt 0:00:00]} c5 {[%emt 0:00:04]} 2. Nf3 {[%emt 0:00:07]} e6 {[%emt 0:00:02]} 3. b3 {[%emt 0:00:05]} Nf6 {[%emt 0:00:08]} 4. e5 {[%emt 0:01:21]} Nd5 {[%emt 0:00:03]} 5. c4 {[%emt 0:00:09]} Nc7 {[%emt 0:01:08]} 6. d4 {[%emt 0:00:14]} cxd4 {[%emt 0:00:11]} 7. Nxd4 {[%emt 0:00:00]} Nc6 {[%emt 0:00:30]} 8. Nxc6 {[%emt 0:00:11]} dxc6 {[%emt 0:00:11]} 9. Qxd8+ {[%emt 0:00:06]} Kxd8 {[%emt 0:00:02]} 10. Bd3 {[%emt 0:00:22]} Bb4+ {[%emt 0:00:07]} 11. Ke2 {[%emt 0:00:43]} a5 {[%emt 0:00:30]} 12. a3 {[%emt 0:00:11]} Bc5 {[%emt 0:00:14]} 13. Bb2 {[%emt 0:00:03]} b5 {[%emt 0:04:16]} 14. Nd2 {[%emt 0:00:26]} bxc4 {[%emt 0:00:34]} 15. bxc4 {[%emt 0:00:04]} Na6 {[%emt 0:01:25]} 16. Bc3 {[%emt 0:04:42]} Bb6 {[%emt 0:00:06]} 17. Rab1 {[%emt 0:00:02]} Bc7 {[%emt 0:00:18]} 18. Ne4 {[%emt 0:00:13]} Ke7 {[%emt 0:00:42]} 19. f4 {[%emt 0:01:15]} Bd7 {[%emt 0:01:20]} 20. c5 {[%emt 0:01:42]} Rhb8 {[%emt 0:01:12]} 21. Rxb8 {[%emt 0:00:04]} Nxb8 {[%emt 0:00:03]} 22. Rb1 {[%emt 0:00:09]} Bc8 {[%emt 0:00:26]} 23. Be1 {[%emt 0:01:19]} Nd7 {[%emt 0:01:00]} 24. g3 {[%emt 0:01:14]} h6 {[%emt 0:00:07]} 25. Bc3 {[%emt 0:00:08]} Bb8 {[%emt 0:00:55]} 26. Ke3 {[%emt 0:00:16]} Ba7 {[%emt 0:00:01]} 27. Bd4 {[%emt 0:00:01]} f5 {[%emt 0:00:14]} 28. exf6+ {[%emt 0:00:06]} gxf6 {[%emt 0:00:01]} 29. Kd2 {[%emt 0:01:48]} f5 {[%emt 0:00:23]} 30. Nc3 {[%emt 0:00:01]} Bxc5 {[%emt 0:00:07]} 31. Bxc5+ {[%emt 0:00:11]} Nxc5 {[%emt 0:00:01]} 32. Bc4 {[%emt 0:00:04]} Ba6 {[%emt 0:00:20]} 33. Bxa6 {[%emt 0:00:02]} Rxa6 {[%emt 0:00:02]} 34. Rb8 {[%emt 0:00:01]} Kf6 {[%emt 0:00:15]} 35. Ke3 {[%emt 0:00:04]} Ra7 {[%emt 0:00:20]} 36. Rc8 {[%emt 0:00:12]} Rd7 {[%emt 0:00:02]} 37. Ne2 {[%emt 0:00:16]} Rd3+ {[%emt 0:00:09]} 38. Kf2 {[%emt 0:00:01]} Ne4+ {[%emt 0:00:04]} 39. Ke1 {[%emt 0:00:02]} Rd6 {[%emt 0:00:06]} 40. Rf8+ {[%emt 0:00:09]} Kg7 {[%emt 0:00:03]} 41. Ra8 {[%emt 0:00:01]} Rd5 {[%emt 0:00:03]} 42. Ra6 {[%emt 0:00:02]} Rc5 {[%emt 0:00:03]} 43. Nd4 {[%emt 0:00:02]} Rc1+ {[%emt 0:00:10]} 44. Ke2 {[%emt 0:00:03]} Rh1 {[%emt 0:00:02]} 45. Rxc6 {[%emt 0:00:08]} Rxh2+ {[%emt 0:00:03]} 46. Kf3 {[%emt 0:00:02]} Rf2+ {[%emt 0:00:05]} 47. Ke3 {[%emt 0:00:01]} Ra2 {[%emt 0:00:07]} 48. Nxe6+ {[%emt 0:00:03]} Kf7 {[%emt 0:00:09]} 49. Nd8+ {[%emt 0:00:12]} Ke8 {[%emt 0:00:07]} 50. Nb7 {[%emt 0:00:04]} Rxa3+ {[%emt 0:00:04]} 51. Kd4 {[%emt 0:00:01]} Kd7 {[%emt 0:00:05]} 52. Rxh6 {[%emt 0:00:06]} Nxg3 {[%emt 0:00:07]} 53. Ra6 {[%emt 0:00:14]} Ne2+ {[%emt 0:00:06]} 54. Ke5 {[%emt 0:00:03]} a4 {[%emt 0:00:12]} 55. Nc5+ {[%emt 0:00:03]} Kc7 {[%emt 0:00:03]} 56. Nxa4 {[%emt 0:00:08]} Ng3 {[%emt 0:00:14]} 57. Ra7+ {[%emt 0:00:07]} Kb8 {[%emt 0:00:04]} 58. Rg7 {[%emt 0:00:04]} Nh5 {[%emt 0:00:09]} 59. Rg8+ {[%emt 0:00:14]} Kc7 {[%emt 0:00:05]} 60. Rg5 {[%emt 0:00:07]} Nxf4 {[%emt 0:00:02]} 61. Kxf4 {[%emt 0:00:02]} Rxa4+ {[%emt 0:00:01]} 62. Kxf5 {[%emt 0:00:00]} Ra5+ {[%emt 0:00:02]} 63. Kg6 {[%emt 0:00:01]} Rxg5+ {[%emt 0:00:01]} 64. Kxg5 {[%emt 0:00:00]} 1/2-1/2